bitfinex/quotes_SOLUSD_20220207
["timestamp","ask_amount","ask_price","bid_price","bid_amount"]
[1644212246968,40.32706376,118.64,118.54,70.12668042]
[1644212247971,40.32706376,118.64,118.54,64.12668042]
[1644212248171,42.68267466,118.64,118.54,24.2298]
[1644212248373,54.82267466,118.64,118.54,24.2298]
[1644212248772,2.1056109,118.64,118.54,24.2298]
[1644212248975,6.3216109,118.66,118.54,24.2298]
[1644212249176,4.216,118.66,118.55,1.97301719]
[1644212249372,1.18810805,118.7,118.55,25.717]
[1644212249575,65.23329182,118.72,118.56,48.5264]
[1644212249576,53.58930805,118.72,118.56,48.5264]
[1644212249772,44.50725686,118.7,118.57,58.14627854]
[1644212249973,9.49605895,118.72,118.58,4.214]
[1644212250173,6.20234,118.72,118.59,12.14]
[1644212250378,1.18810805,118.74,118.61,12.64]
[1644212250574,12.8912,118.77,118.61,12.64]
[1644212250575,1.18810805,118.76,118.62,12.14]
[1644212250776,6.20234,118.75,118.62,12.39]
[1644212250976,48.7785112,118.75,118.63,37.931548]
[1644212251179,42.5761712,118.75,118.63,60.283548]
[1644212251380,42.5761712,118.75,118.63,60.533548]
[1644212251579,48.5761712,118.75,118.63,56.321548]
[1644212252076,48.5761712,118.75,118.65,46.29343283]
[1644212252275,48.5761712,118.75,118.66,12.14]
[1644212252675,48.5761712,118.75,118.63,18.14]
[1644212252676,2.1056109,118.74,118.63,18.14]
[1644212252878,2.1056109,118.74,118.64,6.0]
[1644212253075,2.1056109,118.74,118.63,0.25]
[1644212253076,8.1056109,118.74,118.63,0.25]
[1644212253476,43.08428931,118.73,118.63,46.43120051]
[1644212253676,46.97867841,118.73,118.63,46.43120051]
[1644212253877,47.22867841,118.73,118.63,46.43120051]
[1644212254377,47.22867841,118.73,118.63,46.18120051]
[1644212254579,49.33428931,118.73,118.62,24.5195]
[1644212254778,49.33428931,118.73,118.62,24.7695]
[1644212255277,61.47428931,118.73,118.62,24.7695]
[1644212255479,61.47428931,118.73,118.62,68.68923404]
[1644212256077,74.11868931,118.73,118.62,24.7695]
[1644212256679,74.11868931,118.73,118.62,24.5195]
[1644212256977,74.11868931,118.73,118.62,24.7695]
[1644212257178,74.11868931,118.73,118.62,68.00169382]
[1644212257378,74.11868931,118.73,118.62,67.75169382]
[1644212257579,74.11868931,118.73,118.62,68.00169382]
[1644212258985,74.11868931,118.73,118.6,47.8251]
[1644212259180,74.11868931,118.73,118.58,12.14]
[1644212259181,4.213,118.72,118.58,12.14]
[1644212259381,12.6491,118.69,118.54,59.7559]
[1644212259582,12.14,118.68,118.54,47.6159]
[1644212259783,18.7106109,118.68,118.54,47.6159]
[1644212259986,42.24671134,118.67,118.55,40.77929632]
[1644212260187,12.14,118.66,118.55,40.77929632]
[1644212260382,41.02392982,118.65,118.54,47.6159]
[1644212260585,12.14,118.64,118.54,47.6159]
[1644212260782,12.39,118.64,118.54,47.6159]
[1644212260989,2.1056109,118.63,118.54,47.6159]
[1644212261183,20.2456109,118.63,118.54,47.6159]
[1644212261483,20.2456109,118.63,118.54,47.17218339]
[1644212261484,42.53091979,118.62,118.54,47.17218339]
[1644212261685,48.53091979,118.62,118.54,47.42218339]
[1644212261884,50.88653069,118.62,118.54,47.42218339]
[1644212262808,48.78091979,118.62,118.54,47.42218339]
[1644212263008,61.43691979,118.62,118.54,47.42218339]
[1644212263410,63.54253069,118.62,118.54,47.42218339]
[1644212263610,63.54253069,118.62,118.54,0.25]
[1644212263812,63.54253069,118.62,118.51,24.0368]
[1644212264014,63.54253069,118.62,118.51,30.0368]
[1644212264511,12.14,118.61,118.51,44.92387523]
[1644212264714,36.04253763,118.6,118.51,44.67387523]
[1644212264912,38.14814853,118.6,118.51,6.0]
[1644212265113,44.39814853,118.6,118.5,51.2834]
[1644212265912,44.39814853,118.6,118.51,34.65394958]
[1644212266213,44.39814853,118.6,118.51,40.90394958]
[1644212266411,2.1056109,118.59,118.51,40.90394958]
[1644212266611,43.84981974,118.58,118.51,40.90394958]
[1644212266811,44.09981974,118.58,118.51,40.90394958]
[1644212267012,50.09981974,118.58,118.51,34.90394958]
[1644212268316,50.09981974,118.58,118.51,0.25]
[1644212268514,50.09981974,118.58,118.5,45.5334]
[1644212268914,50.09981974,118.58,118.47,1.19588356]
[1644212269115,64.34543064,118.58,118.47,1.19588356]
[1644212269316,64.34543064,118.58,118.47,39.67863421]
[1644212270218,64.34543064,118.58,118.47,39.92863421]
[1644212270921,77.00683064,118.58,118.47,39.92863421]
[1644212271117,77.00683064,118.58,118.44,1.19588356]
[1644212271322,77.00683064,118.58,118.43,47.47068356]
[1644212271619,23.134,118.57,118.43,46.2748]
[1644212271821,12.14,118.56,118.43,47.47068356]
[1644212272021,35.12482107,118.55,118.44,38.78899724]
[1644212272220,41.37482107,118.55,118.44,38.78899724]
[1644212272622,43.48043197,118.55,118.44,39.03899724]
[1644212273430,41.37482107,118.55,118.44,39.03899724]
[1644212275129,12.14,118.54,118.43,46.2748]
[1644212275327,12.39,118.54,118.43,46.2748]
[1644212275526,2.1056109,118.53,118.43,46.2748]
[1644212275727,12.14,118.52,118.43,46.2748]
[1644212275929,12.39,118.52,118.43,46.2748]
[1644212276127,40.66033683,118.51,118.43,46.2748]
[1644212276328,40.91033683,118.51,118.43,46.2748]
[1644212276527,46.91033683,118.51,118.43,46.5248]
[1644212277328,46.91033683,118.51,118.44,47.4488372]
[1644212277529,46.91033683,118.51,118.43,46.5248]
[1644212278938,46.91033683,118.51,118.43,46.2748]
[1644212279334,46.91033683,118.51,118.44,43.78261918]
[1644212279535,46.91033683,118.51,118.43,46.5248]
[1644212280534,46.91033683,118.51,118.44,46.05932231]
[1644212280734,46.91033683,118.51,118.44,46.30932231]
[1644212285645,6.25,118.51,118.44,46.30932231]
[1644212285848,6.0,118.51,118.44,46.30932231]
[1644212286148,5.5,118.54,118.44,52.30932231]
[1644212286345,4.22,118.57,118.44,52.30932231]
[1644212286346,12.14,118.57,118.44,52.30932231]
[1644212286546,34.91199463,118.57,118.46,48.43523504]
[1644212286747,34.91199463,118.57,118.46,60.82523504]
[1644212287047,24.7959,118.62,118.46,66.82523504]
[1644212287247,24.7959,118.62,118.47,47.0745]
[1644212287447,24.7959,118.62,118.47,59.2145]
[1644212287647,2.1056109,118.61,118.47,65.4645]
[1644212287947,35.49843168,118.6,118.47,65.4645]
[1644212288348,35.74843168,118.6,118.47,65.4645]
[1644212288547,41.74843168,118.6,118.47,65.4645]
[1644212288973,41.74843168,118.6,118.48,12.6549]
[1644212289173,43.85404258,118.6,118.48,6.0]
[1644212289371,43.85404258,118.6,118.48,6.25]
[1644212289572,55.99404258,118.6,118.48,6.25]
[1644212289777,55.99404258,118.6,118.48,0.25]
[1644212289972,55.99404258,118.6,118.48,6.0]
[1644212290572,55.99404258,118.6,118.47,59.2145]
[1644212290573,66.54713168,118.6,118.47,59.2145]
[1644212291176,68.65274258,118.6,118.47,65.2145]
[1644212291479,72.87074258,118.6,118.47,65.4645]
[1644212292175,82.62323388,118.6,118.47,47.0745]
[1644212292379,102.17945524,118.6,118.46,48.43523504]
[1644212292575,14.32034087,118.59,118.46,0.25]
[1644212292776,12.6641,118.56,118.46,0.25]
[1644212292975,12.14,118.55,118.44,1.19588356]
[1644212293178,24.4646109,118.55,118.43,1.19588356]
[1644212293476,2.1056109,118.54,118.43,1.19588356]
[1644212293676,58.81368674,118.54,118.43,37.51586934]
[1644212293978,71.72828674,118.54,118.43,37.51586934]
[1644212295280,71.72828674,118.54,118.43,36.31998578]
[1644212295480,71.72828674,118.54,118.43,37.51586934]
[1644212296281,71.72828674,118.54,118.43,37.76586934]
[1644212297180,44.56807584,118.54,118.43,37.76586934]
[1644212297380,44.56807584,118.54,118.44,13.33588356]
[1644212297580,44.56807584,118.54,118.45,1.19588356]
[1644212297779,44.56807584,118.54,118.45,1.44588356]
[1644212297982,6.0,118.54,118.45,3.43190565]
[1644212298178,15.43371895,118.59,118.45,3.43190565]
[1644212298179,34.09351895,118.59,118.45,3.43190565]
[1644212298380,34.09351895,118.59,118.46,47.5278]
[1644212298580,32.9054109,118.59,118.46,48.72368356]
[1644212298781,31.0498,118.59,118.46,48.97368356]
[1644212298984,43.2408524,118.58,118.47,46.1696695]
[1644212299181,49.2408524,118.58,118.47,46.1696695]
[1644212299380,49.4908524,118.58,118.47,47.61555306]
[1644212300184,49.4908524,118.58,118.47,46.4196695]
[1644212300382,62.1514524,118.58,118.47,46.4196695]
[1644212300585,14.2456109,118.57,118.46,48.72368356]
[1644212300784,14.4956109,118.57,118.46,48.72368356]
[1644212300985,2.1056109,118.56,118.46,48.72368356]
[1644212301184,20.2456109,118.56,118.46,47.5278]
[1644212301384,20.4956109,118.56,118.46,47.5278]
[1644212301586,2.1056109,118.55,118.46,47.5278]
[1644212301784,65.11889721,118.54,118.46,47.5278]
[1644212302088,73.22450811,118.54,118.46,47.5278]
[1644212302284,82.28620707,118.54,118.46,47.5278]
[1644212304288,73.47450811,118.54,118.46,47.5278]
[1644212304691,58.70399721,118.54,118.46,47.5278]
[1644212305088,58.70399721,118.54,118.46,47.7778]
[1644212305291,58.70399721,118.54,118.46,47.5278]
[1644212305588,60.80960811,118.54,118.46,47.5278]
[1644212305789,60.80960811,118.54,118.46,47.7778]
[1644212305994,58.70399721,118.54,118.46,47.7778]
[1644212306191,46.56399721,118.54,118.46,47.7778]
[1644212307492,46.31399721,118.54,118.46,47.7778]
[1644212307892,46.31399721,118.54,118.46,47.5278]
[1644212308090,46.31399721,118.54,118.46,47.7778]
[1644212308492,46.31399721,118.54,118.46,47.5278]
[1644212308693,46.31399721,118.54,118.46,47.7778]
[1644212308893,46.56399721,118.54,118.46,47.7778]
[1644212310296,6.25,118.54,118.46,47.7778]
[1644212310595,6.0,118.56,118.46,48.97368356]
[1644212310795,6.0,118.54,118.46,48.97368356]
[1644212310995,6.0,118.56,118.46,48.97368356]
[1644212311402,41.77191417,118.57,118.47,1.19588356]
[1644212311600,47.77191417,118.57,118.48,43.17926924]
[1644212311798,47.77191417,118.57,118.48,43.42926924]
[1644212311799,48.02191417,118.57,118.48,43.42926924]
[1644212312397,47.77191417,118.57,118.48,43.42926924]
[1644212314702,48.02191417,118.57,118.48,43.42926924]
[1644212315129,48.02191417,118.57,118.48,43.17926924]
[1644212315731,48.02191417,118.57,118.48,43.42926924]
[1644212317629,48.02191417,118.57,118.48,43.17926924]
[1644212317834,74.92922507,118.57,118.48,43.17926924]
[1644212318033,84.68171637,118.57,118.48,43.17926924]
[1644212319834,72.57361417,118.57,118.48,43.42926924]
[1644212321235,66.57361417,118.57,118.48,43.42926924]
[1644212322437,12.39,118.57,118.48,43.42926924]
[1644212322635,18.14,118.57,118.48,43.42926924]
[1644212322835,6.0,118.57,118.48,43.42926924]
[1644212323237,31.98710805,118.59,118.48,43.42926924]
[1644212323638,42.89971757,118.58,118.48,43.42926924]
[1644212324038,61.81011757,118.58,118.48,43.42926924]
[1644212324742,14.2456109,118.57,118.48,43.42926924]
[1644212325140,18.14,118.57,118.48,43.42926924]
[1644212325339,6.0,118.57,118.48,43.42926924]
[1644212325539,6.0,118.57,118.48,50.6251528]
[1644212325739,1.18810805,118.6,118.48,52.57800008]
[1644212325940,1.18810805,118.6,118.49,24.3176]
[1644212325941,7.18810805,118.6,118.49,24.3176]
[1644212326141,6.0,118.6,118.49,25.51348356]
[1644212326341,6.0,118.6,118.49,25.76348356]
[1644212326544,6.0,118.6,118.49,33.71633084]
[1644212326741,38.15843039,118.59,118.49,33.71633084]
[1644212327144,6.0,118.59,118.49,33.71633084]
[1644212327341,6.0,118.59,118.5,13.33588356]
[1644212327741,6.0,118.62,118.5,21.53873084]
[1644212327942,6.0,118.62,118.51,23.5105]
[1644212328141,41.0694322,118.61,118.52,42.07311109]
[1644212328342,41.0694322,118.61,118.52,42.32311109]
[1644212328542,47.3194322,118.61,118.52,0.25]
[1644212328742,2.1056109,118.6,118.52,0.25]
[1644212329144,8.3556109,118.6,118.52,0.25]
[1644212329545,8.3556109,118.6,118.52,43.80150931]
[1644212329747,8.3556109,118.6,118.52,44.05150931]
[1644212331745,6.25,118.6,118.52,44.05150931]
[1644212332751,0.25,118.6,118.52,44.05150931]
[1644212332951,6.25,118.6,118.52,44.05150931]
[1644212333752,0.25,118.6,118.52,44.05150931]
[1644212333954,6.25,118.6,118.52,44.05150931]
[1644212334551,0.25,118.6,118.52,44.05150931]
[1644212334752,6.0,118.6,118.52,44.05150931]
[1644212335252,6.25,118.6,118.52,44.05150931]
[1644212335454,0.25,118.6,118.52,44.05150931]
[1644212335652,6.25,118.6,118.52,44.05150931]
[1644212336254,0.25,118.6,118.52,44.05150931]
[1644212336453,6.25,118.6,118.52,44.05150931]
[1644212336653,6.0,118.6,118.52,44.05150931]
[1644212336855,6.25,118.6,118.52,44.05150931]
[1644212337855,2.3556109,118.6,118.52,43.80150931]
[1644212338056,8.3556109,118.6,118.52,43.80150931]
[1644212338558,6.25,118.6,118.52,43.80150931]
[1644212338757,6.25,118.6,118.52,44.05150931]
[1644212338963,0.25,118.6,118.52,44.05150931]
[1644212339257,6.0,118.6,118.52,44.05150931]
[1644212339757,0.25,118.6,118.52,44.05150931]
[1644212340058,0.226,118.6,118.52,44.05150931]
[1644212340858,59.7267322,118.61,118.52,44.05150931]
[1644212341261,59.9767322,118.61,118.52,44.05150931]
[1644212341483,59.9767322,118.61,118.52,43.80150931]
[1644212341686,59.9767322,118.61,118.52,44.05150931]
[1644212342280,59.9767322,118.61,118.52,43.80150931]
[1644212342683,59.9767322,118.61,118.49,1.19588356]
[1644212342883,12.6593,118.59,118.49,1.19588356]
[1644212343079,12.14,118.58,118.49,1.19588356]
[1644212343281,23.05999415,118.58,118.49,1.19588356]
[1644212343480,10.66999415,118.57,118.46,1.19588356]
[1644212343680,58.84341741,118.56,118.47,39.33704108]
[1644212344080,60.87541741,118.56,118.47,39.33704108]
[1644212344481,60.87541741,118.56,118.47,39.58704108]
[1644212345583,73.53811741,118.56,118.47,39.58704108]
[1644212346484,73.53811741,118.56,118.47,39.33704108]
[1644212346685,73.53811741,118.56,118.47,39.58704108]
[1644212347085,67.53811741,118.56,118.47,39.58704108]
[1644212348090,67.53811741,118.56,118.47,39.33704108]
[1644212348288,67.53811741,118.56,118.47,39.58704108]
[1644212348486,75.64372831,118.56,118.47,39.33704108]
[1644212351590,75.64372831,118.56,118.45,47.5248]
[1644212351790,75.64372831,118.56,118.45,47.7748]
[1644212352389,75.64372831,118.56,118.45,47.5248]
[1644212352799,79.86272831,118.56,118.45,47.5248]
[1644212353389,65.61711741,118.56,118.45,49.45338237]
[1644212353590,48.73541741,118.56,118.45,49.45338237]
[1644212353789,6.0,118.56,118.45,61.84338237]
[1644212354189,54.2403,118.58,118.45,61.84338237]
[1644212354791,99.86748957,118.58,118.45,61.84338237]
[1644212355190,99.86748957,118.58,118.45,63.03926593]
[1644212355191,94.11748957,118.58,118.45,63.03926593]
[1644212355392,81.58908957,118.58,118.45,63.03926593]
[1644212355592,68.92908957,118.58,118.45,69.03926593]
[1644212355994,45.87718957,118.58,118.45,69.03926593]
[1644212356692,51.87718957,118.58,118.45,69.03926593]
[1644212356893,51.87718957,118.58,118.46,1.19588356]
[1644212357095,51.87718957,118.58,118.46,7.19588356]
[1644212357292,51.87718957,118.58,118.46,9.37446593]
[1644212357493,51.87718957,118.58,118.48,35.72966497]
[1644212357696,66.64320047,118.58,118.48,35.72966497]
[1644212358097,12.14,118.57,118.48,35.72966497]
[1644212358297,12.39,118.57,118.48,35.72966497]
[1644212358495,18.39,118.57,118.48,35.72966497]
[1644212358695,18.39,118.57,118.48,35.97966497]
[1644212358896,18.39,118.57,118.48,35.72966497]
[1644212359097,31.0514,118.57,118.48,35.97966497]
[1644212361098,18.39,118.57,118.48,35.97966497]
[1644212362704,6.25,118.57,118.48,35.97966497]
[1644212363301,6.25,118.57,118.48,35.72966497]
[1644212363504,20.4956109,118.57,118.48,35.72966497]
[1644212363703,20.4956109,118.57,118.48,35.97966497]
[1644212363902,18.39,118.57,118.48,35.97966497]
[1644212364104,6.25,118.57,118.48,35.97966497]
[1644212364504,0.25,118.57,118.48,35.97966497]
[1644212364709,6.0,118.57,118.48,35.97966497]
[1644212365204,6.0,118.59,118.48,56.0587423]
[1644212365505,6.0,118.59,118.49,24.9546]
[1644212365705,7.18810805,118.61,118.49,25.2046]
[1644212365905,7.18810805,118.61,118.49,49.4094]
[1644212366306,7.43810805,118.61,118.49,49.4094]
[1644212366510,6.0,118.61,118.49,64.00207733]
[1644212366705,7.18810805,118.62,118.49,82.14207733]
[1644212366908,1.18810805,118.62,118.49,82.14207733]
[1644212367206,7.18810805,118.62,118.49,82.14207733]
[1644212367406,6.0,118.62,118.49,83.33796089]
[1644212367628,41.91708951,118.62,118.49,83.33796089]
[1644212367808,42.16708951,118.62,118.49,83.33796089]
[1644212368005,48.16708951,118.62,118.49,83.33796089]
[1644212368206,6.25,118.62,118.49,83.33796089]
[1644212368406,6.0,118.62,118.49,83.33796089]
[1644212368611,25.43388325,118.65,118.5,1.19588356]
[1644212368612,13.32810805,118.64,118.5,1.19588356]
[1644212368809,1.18810805,118.65,118.54,12.6479]
[1644212369006,1.18810805,118.65,118.55,49.4646]
[1644212369209,1.18810805,118.66,118.56,39.14803326]
[1644212369510,40.95279977,118.67,118.56,39.14803326]
[1644212369708,40.95279977,118.67,118.56,47.33711059]
[1644212369911,59.09279977,118.67,118.56,45.39803326]
[1644212370811,57.90469172,118.67,118.56,47.33711059]
[1644212371009,59.09279977,118.67,118.56,45.14803326]
[1644212371211,61.19841067,118.67,118.56,39.39803326]
[1644212371609,61.19841067,118.67,118.55,49.4646]
[1644212371913,12.6548,118.63,118.55,49.4646]
[1644212372108,30.7948,118.63,118.51,24.6705]
[1644212372308,2.1056109,118.62,118.51,24.9205]
[1644212372509,14.2456109,118.62,118.51,24.9205]
[1644212372710,43.79015789,118.61,118.52,35.43617533]
[1644212372909,45.89576879,118.61,118.52,35.43617533]
[1644212373111,50.04015789,118.61,118.52,35.68617533]
[1644212373311,50.04015789,118.61,118.52,35.43617533]
[1644212373511,52.14576879,118.61,118.52,35.43617533]
[1644212373712,64.28576879,118.61,118.52,35.43617533]
[1644212374810,64.28576879,118.61,118.52,35.68617533]
[1644212375010,76.94266879,118.61,118.5,47.3933]
[1644212375613,78.13077684,118.61,118.47,24.6716]
[1644212375811,78.13077684,118.61,118.47,24.9216]
[1644212376012,92.192808,118.61,118.48,39.49128275]
[1644212376214,12.659,118.59,118.48,39.74128275]
[1644212376413,12.14,118.58,118.48,39.74128275]
[1644212376616,18.14,118.58,118.48,39.74128275]
[1644212376814,18.39,118.58,118.48,39.74128275]
[1644212379416,18.39,118.58,118.48,39.49128275]
[1644212380015,18.14,118.58,118.48,41.43036008]
[1644212380223,18.39,118.58,118.48,39.49128275]
[1644212380417,18.39,118.58,118.48,45.49128275]
[1644212380715,18.39,118.58,118.48,47.68036008]
[1644212380915,18.39,118.58,118.48,45.74128275]
[1644212381115,18.14,118.58,118.48,45.74128275]
[1644212381316,18.14,118.58,118.48,39.74128275]
[1644212381517,39.76469172,118.57,118.48,39.74128275]
[1644212381716,45.76469172,118.57,118.48,39.74128275]
[1644212382737,46.01469172,118.57,118.48,39.74128275]
[1644212382936,6.25,118.57,118.48,39.74128275]
[1644212383136,6.0,118.58,118.48,39.74128275]
[1644212383338,6.0,118.57,118.49,1.93907733]
[1644212383536,6.25,118.58,118.48,45.74128275]
[1644212383738,6.0,118.58,118.49,6.0]
[1644212383937,54.68650162,118.59,118.48,46.93716631]
[1644212384336,6.0,118.59,118.48,46.93716631]
[1644212384738,12.14,118.6,118.48,46.93716631]
[1644212384937,18.14,118.6,118.48,46.93716631]
[1644212385138,18.14,118.6,118.49,22.9126]
[1644212385336,39.91521029,118.59,118.49,23.1626]
[1644212385537,39.91521029,118.59,118.49,29.1626]
[1644212385737,46.16521029,118.59,118.49,29.1626]
[1644212385937,46.16521029,118.59,118.49,22.9126]
[1644212386142,60.41082119,118.59,118.49,22.9126]
[1644212386538,60.41082119,118.59,118.48,39.49128275]
[1644212386740,61.59892924,118.59,118.48,39.49128275]
[1644212386939,4.218,118.58,118.48,39.49128275]
[1644212387138,12.14,118.57,118.48,39.49128275]
[1644212387338,12.6626,118.56,118.48,39.49128275]
[1644212387538,43.63963932,118.55,118.48,39.49128275]
[1644212387738,56.02963932,118.55,118.48,39.49128275]
[1644212387937,64.13525022,118.55,118.48,39.49128275]
[1644212388338,2.1056109,118.54,118.48,39.49128275]
[1644212388742,8.3556109,118.54,118.48,39.49128275]
[1644212389845,6.0,118.54,118.48,39.49128275]
[1644212390043,2.1056109,118.57,118.48,39.49128275]
[1644212390241,6.0,118.57,118.49,1.93907733]
[1644212390442,6.0,118.57,118.48,39.74128275]
[1644212390843,38.90959475,118.57,118.48,39.74128275]
[1644212391045,44.90959475,118.57,118.48,39.49128275]
[1644212391345,39.15959475,118.57,118.48,39.49128275]
[1644212391743,12.14,118.56,118.48,39.49128275]
[1644212392341,12.39,118.56,118.48,39.49128275]
[1644212392741,18.39,118.56,118.48,39.74128275]
[1644212393942,12.39,118.56,118.48,39.74128275]
[1644212394341,25.59280805,118.6,118.48,39.74128275]
[1644212394545,12.14,118.6,118.48,39.74128275]
[1644212394741,12.39,118.6,118.48,45.74128275]
[1644212394942,1.18810805,118.62,118.48,47.68036008]
[1644212395141,47.61646806,118.6,118.49,46.7488]
[1644212395342,47.61646806,118.6,118.49,46.9988]
[1644212395642,53.61646806,118.6,118.5,1.93907733]
[1644212395843,53.61646806,118.6,118.5,2.18907733]
[1644212396242,53.61646806,118.6,118.51,1.93907733]
[1644212396446,53.61646806,118.6,118.52,48.44308806]
[1644212397447,53.61646806,118.6,118.5,6.25]
[1644212397744,12.14,118.59,118.49,46.7488]
[1644212397944,18.14,118.59,118.49,46.7488]
[1644212398145,18.14,118.59,118.49,52.7488]
[1644212398644,18.14,118.59,118.5,36.24147053]
[1644212398845,18.14,118.59,118.5,36.49147053]
[1644212399445,18.14,118.59,118.5,42.49147053]
[1644212400044,18.14,118.59,118.5,36.49147053]
[1644212400246,18.14,118.59,118.5,42.49147053]
[1644212400447,18.14,118.59,118.5,42.24147053]
[1644212400846,18.14,118.59,118.49,46.7488]
[1644212401048,25.65071895,118.59,118.45,1.19588356]
[1644212401246,21.43371895,118.59,118.45,49.54928356]
[1644212401646,21.43371895,118.59,118.46,1.19588356]
[1644212401847,25.83111372,118.59,118.47,38.97395016]
[1644212402048,52.55224488,118.59,118.47,38.97395016]
[1644212402447,1.18810805,118.58,118.47,38.97395016]
[1644212402647,12.14,118.57,118.47,38.97395016]
[1644212402848,35.93838155,118.56,118.47,38.97395016]
[1644212403048,48.07838155,118.56,118.47,38.97395016]
[1644212403249,56.18399245,118.56,118.47,38.97395016]
[1644212403848,30.802,118.56,118.47,38.97395016]
[1644212404048,6.0,118.56,118.47,38.97395016]
[1644212404447,18.14,118.58,118.47,38.97395016]
[1644212404851,40.36831583,118.57,118.47,38.97395016]
[1644212405251,46.36831583,118.57,118.47,38.97395016]
[1644212407052,6.0,118.57,118.47,42.10891105]
[1644212407252,18.14,118.59,118.47,48.10891105]
[1644212407457,6.0,118.59,118.48,22.5184]
[1644212407655,54.3614,118.6,118.48,29.71428356]
[1644212408053,35.96188316,118.59,118.48,29.71428356]
[1644212408253,35.96188316,118.59,118.48,23.71428356]
[1644212408453,48.10188316,118.59,118.48,22.5184]
[1644212408856,46.97835835,118.59,118.49,46.19932445]
[1644212409655,52.97835835,118.59,118.49,46.19932445]
[1644212409956,65.63645835,118.59,118.49,46.19932445]
[1644212410355,52.97835835,118.59,118.49,46.19932445]
[1644212410556,18.14,118.59,118.49,46.19932445]
[1644212410755,18.14,118.59,118.49,48.13840178]
[1644212410958,6.0,118.59,118.49,48.13840178]
[1644212411158,19.32810805,118.61,118.49,54.13840178]
[1644212411455,19.32810805,118.61,118.5,22.8682]
[1644212411657,46.73504184,118.6,118.51,43.27077607]
[1644212412057,52.73504184,118.6,118.51,43.27077607]
[1644212412660,6.0,118.6,118.51,43.27077607]
[1644212412958,6.0,118.61,118.51,45.2098534]
[1644212413157,6.0,118.62,118.51,76.0013534]
[1644212413357,6.0,118.63,118.52,23.2032]
[1644212413757,40.28659001,118.62,118.53,42.39246557]
[1644212414159,46.28659001,118.62,118.53,42.39246557]
[1644212414960,6.0,118.62,118.53,42.39246557]
[1644212415162,30.99880805,118.64,118.53,42.39246557]
[1644212415359,29.8107,118.64,118.53,66.67616557]
[1644212416058,67.96684361,118.64,118.53,66.67616557]
[1644212416459,44.15614361,118.64,118.53,68.6152429]
[1644212416758,6.0,118.64,118.53,68.6152429]
[1644212417158,54.7138,118.65,118.53,68.6152429]
[1644212417358,54.7138,118.65,118.54,23.6653]
[1644212417558,56.8194109,118.65,118.54,23.6653]
[1644212417761,44.44289883,118.64,118.55,47.23903753]
[1644212418160,50.44289883,118.64,118.55,47.23903753]
[1644212418559,12.6527,118.63,118.55,47.23903753]
[1644212418760,37.98842597,118.62,118.55,47.23903753]
[1644212418959,37.98842597,118.62,118.5,47.99428356]
[1644212419159,12.14,118.61,118.5,46.7984]
[1644212419360,14.2456109,118.61,118.5,46.7984]
[1644212419660,20.2456109,118.61,118.5,46.7984]
[1644212419864,20.2456109,118.61,118.51,46.77359397]
[1644212420463,44.44289883,118.6,118.51,46.77359397]
[1644212420663,50.44289883,118.6,118.51,46.77359397]
[1644212421064,63.09939883,118.6,118.51,46.77359397]
[1644212421365,18.6565,118.6,118.51,46.77359397]
[1644212421664,6.0,118.6,118.51,46.77359397]
[1644212422167,18.14,118.62,118.51,46.77359397]
[1644212422366,41.63941477,118.61,118.51,46.77359397]
[1644212422566,47.63941477,118.61,118.51,46.77359397]
[1644212422768,60.29491477,118.61,118.51,46.77359397]
[1644212423172,62.40052567,118.61,118.51,46.77359397]
[1644212423769,74.54052567,118.61,118.51,46.77359397]
[1644212424470,72.43491477,118.61,118.51,46.77359397]
[1644212424869,2.1056109,118.6,118.51,46.77359397]
[1644212425069,40.79191003,118.59,118.51,46.77359397]
[1644212425474,46.79191003,118.59,118.51,46.77359397]
[1644212426070,6.0,118.59,118.51,46.77359397]
[1644212426272,6.0,118.61,118.51,46.77359397]
[1644212426670,6.0,118.62,118.51,46.77359397]
[1644212426871,41.7111,118.63,118.51,50.99059397]
[1644212427072,40.70094086,118.62,118.52,23.9354]
[1644212427273,40.70094086,118.62,118.53,39.88209876]
[1644212427471,46.70094086,118.62,118.53,39.88209876]
[1644212428677,6.0,118.62,118.53,39.88209876]
[1644212429080,6.0,118.63,118.53,64.68627609]
[1644212429281,6.0,118.63,118.54,24.0594]
[1644212429483,29.6008,118.64,118.54,24.0594]
[1644212429681,48.73361082,118.63,118.55,47.98566512]
[1644212429881,48.73361082,118.63,118.54,30.0594]